fUST/lending_fUST_20250601
["ID","MTS","AMOUNT","RATE_DAILY","PERIOD"]
[363409830,1748719835336,-502.6,0.0001726,2]
[363409831,1748719835463,-662.76,0.0001726,2]
[363409833,1748719835474,-430.0,0.0001726,2]
[363409834,1748719835484,-430.0,0.0001726,2]
[363409835,1748719835497,-1251.85,0.0001726,2]
[363409836,1748719835507,-420.0,0.00017279,2]
[363409837,1748719835517,-500.0,0.00017533,2]
[363409838,1748719835526,-430.0,0.00017534,2]
[363409839,1748719835536,-430.0,0.00017534,2]
[363409840,1748719835546,-595.53,0.00017534,2]
[363409841,1748719835556,-682.41,0.00017534,2]
[363409842,1748719835566,-430.0,0.00017534,2]
[363409843,1748719835576,-503.98,0.00017534,2]
[363409844,1748719835587,-430.0,0.00017534,2]
[363409845,1748719835597,-430.0,0.00017534,2]
[363409846,1748719835606,-430.0,0.00017534,2]
[363409847,1748719835616,-430.0,0.00017534,2]
[363409848,1748719835626,-674.67,0.00017534,2]
[363409849,1748719835635,-445.14,0.00017534,2]
[363409850,1748719835645,-430.0,0.00017534,2]
[363409851,1748719835655,-672.4,0.00017534,2]
[363409852,1748719835664,-880.72,0.00017534,2]
[363409853,1748719835674,-1040.2,0.00017534,2]
[363409854,1748719835683,-430.0,0.00017534,2]
[363409855,1748719835693,-430.0,0.00017534,2]
[363409856,1748719835702,-430.0,0.00017534,2]
[363409857,1748719835712,-562.54,0.00017534,2]
[363409858,1748719835722,-159.57,0.00017534,2]
[363409859,1748719835732,-502.6,0.00017534,2]
[363409860,1748719835742,-662.76,0.00017534,2]
[363409861,1748719835752,-430.0,0.00017534,2]
[363409862,1748719835762,-430.0,0.00017534,2]
[363409863,1748719835771,-1251.85,0.00017534,2]
[363409864,1748719835782,-430.0,0.00017808,2]
[363409865,1748719835792,-595.53,0.00017808,2]
[363409866,1748719835801,-682.41,0.00017808,2]
[363409867,1748719835811,-430.0,0.00017808,2]
[363409868,1748719835821,-503.98,0.00017808,2]
[363409869,1748719835831,-430.0,0.00017808,2]
[363409870,1748719835841,-430.0,0.00017808,2]
[363409871,1748719835851,-430.0,0.00017808,2]
[363409872,1748719835860,-430.0,0.00017808,2]
[363409873,1748719835869,-674.67,0.00017808,2]
[363409874,1748719835879,-445.14,0.00017808,2]
[363409875,1748719835888,-430.0,0.00017808,2]
[363409876,1748719835898,-672.4,0.00017808,2]
[363409877,1748719835908,-880.72,0.00017808,2]
[363409878,1748719835918,-1040.2,0.00017808,2]
[363409879,1748719835928,-489.59,0.00017808,2]
[363409880,1748719835937,-430.0,0.00017808,2]
[363409881,1748719835947,-430.0,0.00017808,2]
[363409882,1748719835957,-562.54,0.00017808,2]
[363409883,1748719835966,-502.6,0.00017808,2]
[363409884,1748719835977,-662.76,0.00017808,2]
[363409885,1748719835987,-430.0,0.00017808,2]
[363409886,1748719835997,-430.0,0.00017808,2]
[363409887,1748719836007,-1251.85,0.00017808,2]
[363409888,1748719836016,-160.0,0.00017831,2]
[363409889,1748719836027,-160.0,0.00017831,2]
[363409890,1748719836038,-160.0,0.00017831,2]
[363409891,1748719836048,-212.77096907,0.00017831,2]
[363409892,1748719836059,-229.3428821,0.00017831,2]
[363409893,1748719836069,-842.5625,0.00017831,2]
[363409894,1748719836078,-423.4608169,0.00017831,2]
[363409895,1748719836088,-151.00000001,0.00017989,2]
[363409896,1748719836098,-199.95080431,0.00017999,2]
[363409897,1748719836108,-500.0,0.00017999,2]
[363409898,1748719836118,-500.0,0.00017999,2]
[363409899,1748719836131,-500.0,0.00017999,2]
[363409900,1748719836140,-500.0,0.00017999,2]
[363409901,1748719836150,-500.0,0.00017999,2]
[363409902,1748719836160,-500.0,0.00017999,2]
[363409903,1748719836169,-500.0,0.00017999,2]
[363409904,1748719836179,-374.98746985,0.00017999,2]
[363409905,1748719836189,-500.0,0.00017999,2]
[363409906,1748719836200,-550.0,0.00017999,2]
[363409907,1748719836210,-126129.05134492,0.00018,2]
[363409908,1748719836220,-500.0,0.00018081,2]
[363409909,1748719836230,-430.0,0.00018082,2]
[363409910,1748719836240,-595.53,0.00018082,2]
[363409911,1748719836249,-682.41,0.00018082,2]
[363409912,1748719836259,-430.0,0.00018082,2]
[363409913,1748719836269,-503.98,0.00018082,2]
[363409914,1748719836278,-430.0,0.00018082,2]
[363409915,1748719836288,-430.0,0.00018082,2]
[363409916,1748719836298,-430.0,0.00018082,2]
[363409917,1748719836308,-430.0,0.00018082,2]
[363409918,1748719836319,-674.67,0.00018082,2]
[363409919,1748719836330,-445.14,0.00018082,2]
[363409920,1748719836341,-430.0,0.00018082,2]
[363409921,1748719836352,-672.4,0.00018082,2]
[363409922,1748719836362,-880.72,0.00018082,2]
[363409923,1748719836373,-1040.2,0.00018082,2]
[363409924,1748719836383,-430.0,0.00018082,2]
[363409925,1748719836393,-430.0,0.00018082,2]
[363409926,1748719836403,-562.54,0.00018082,2]
[363409927,1748719836412,-502.6,0.00018082,2]
[363409928,1748719836421,-662.76,0.00018082,2]
[363409929,1748719836430,-430.0,0.00018082,2]
[363409930,1748719836440,-430.0,0.00018082,2]
[363409931,1748719836449,-1251.85,0.00018082,2]
[363409932,1748719836458,-255.76,0.00018346,3]
[363409933,1748719836467,-767.33,0.00018346,3]
[363409934,1748719836477,-430.0,0.00018356,2]
[363409935,1748719836486,-595.53,0.00018356,2]
[363409936,1748719836495,-682.41,0.00018356,2]
[363409937,1748719836504,-430.0,0.00018356,2]
[363409938,1748719836513,-503.98,0.00018356,2]
[363409939,1748719836522,-430.0,0.00018356,2]
[363409940,1748719836531,-430.0,0.00018356,2]
[363409941,1748719836540,-430.0,0.00018356,2]
[363409942,1748719836550,-430.0,0.00018356,2]
[363409943,1748719836559,-674.67,0.00018356,2]
[363409944,1748719836568,-445.14,0.00018356,2]
[363409945,1748719836577,-330.84,0.00018356,2]
[363409946,1748719836586,-672.4,0.00018356,2]
[363409947,1748719836596,-880.72,0.00018356,2]
[363409948,1748719836606,-1040.2,0.00018356,2]
[363409949,1748719836615,-430.0,0.00018356,2]
[363409950,1748719836624,-430.0,0.00018356,2]
[363409951,1748719836634,-562.54,0.00018356,2]
[363409952,1748719836644,-502.6,0.00018356,2]
[363409953,1748719836654,-662.76,0.00018356,2]
[363409954,1748719836664,-430.0,0.00018356,2]
[363409955,1748719836674,-430.0,0.00018356,2]
[363409956,1748719836683,-1251.85,0.00018356,2]
[363409957,1748719836693,-500.0,0.00018382,2]
[363409958,1748719836701,-629.75984394,0.00018535,2]
[363409959,1748719836710,-1023.05,0.0001862,3]
[363409960,1748719836718,-511.52,0.0001862,3]
[363409961,1748719836727,-229.91,0.0001863,2]
[363409962,1748719836737,-595.53,0.0001863,2]
[363409963,1748719836748,-682.41,0.0001863,2]
[363409964,1748719836760,-430.0,0.0001863,2]
[363409965,1748719836770,-503.98,0.0001863,2]
[363409966,1748719836780,-430.0,0.0001863,2]
[363409967,1748719836789,-430.0,0.0001863,2]
[363409968,1748719836799,-430.0,0.0001863,2]
[363409969,1748719836808,-430.0,0.0001863,2]
[363409970,1748719836817,-674.67,0.0001863,2]
[363409971,1748719836827,-445.14,0.0001863,2]
[363409972,1748719836836,-672.4,0.0001863,2]
[363409973,1748719836846,-880.72,0.0001863,2]
[363409974,1748719836856,-1040.2,0.0001863,2]
[363409975,1748719836865,-430.0,0.0001863,2]
[363409976,1748719836874,-430.0,0.0001863,2]
[363409977,1748719836883,-562.54,0.0001863,2]
[363409978,1748719836892,-502.6,0.0001863,2]
[363409979,1748719836902,-662.76,0.0001863,2]
[363409980,1748719836911,-430.0,0.0001863,2]
[363409981,1748719836920,-430.0,0.0001863,2]
[363409982,1748719836930,-1251.85,0.0001863,2]
[363409983,1748719836939,-316.0,0.00018895,2]
[363409984,1748719836949,-696.47186026,0.000189,2]
[363409985,1748719836959,-595.53,0.00018904,2]
[363409986,1748719836968,-682.41,0.00018904,2]
[363409987,1748719836978,-430.0,0.00018904,2]
[363409988,1748719836989,-503.98,0.00018904,2]
[363409989,1748719836998,-430.0,0.00018904,2]
[363409990,1748719837008,-430.0,0.00018904,2]
[363409991,1748719837018,-430.0,0.00018904,2]
[363409992,1748719837028,-430.0,0.00018904,2]
[363409993,1748719837038,-674.67,0.00018904,2]
[363409994,1748719837048,-445.14,0.00018904,2]
[363409995,1748719837057,-672.4,0.00018904,2]
[363409996,1748719837067,-880.72,0.00018904,2]
[363409997,1748719837076,-1040.2,0.00018904,2]
[363409998,1748719837085,-430.0,0.00018904,2]
[363409999,1748719837095,-430.0,0.00018904,2]
[363410000,1748719837104,-562.54,0.00018904,2]
[363410001,1748719837114,-502.6,0.00018904,2]
[363410002,1748719837126,-662.76,0.00018904,2]
[363410003,1748719837137,-430.0,0.00018904,2]
[363410004,1748719837146,-430.0,0.00018904,2]
[363410005,1748719837156,-1251.85,0.00018904,2]
[363410006,1748719837166,-37246.43459486,0.00019178,3]
[363410007,1748719837176,-9190.77016726,0.00019178,2]
[363410008,1748719837238,-13507.78877091,0.00019178,2]
[363411005,1748719848385,184.35433166,6.8e-07,2]
[363411042,1748719848763,69.19997693,6.8e-07,2]
[363411045,1748719848785,115.15435473,6.8e-07,2]
[363422509,1748720149688,191.99786986,6.8e-07,2]
[363422510,1748720149903,191.99786986,6.8e-07,2]
[363422515,1748720360010,741.644652,0.00013699,2]
[363422517,1748720450586,177.81169944,6.8e-07,2]
[363422518,1748720450715,177.81169944,6.8e-07,2]
[363422538,1748720752059,177.81169943,6.8e-07,2]
[363422604,1748720946131,-300.0,0.0001574,2]
[363422605,1748720946153,-300.0,0.0001574,2]
[363422606,1748720946175,-8279.03384991,0.00015741,2]
[363422621,1748721032395,-767.68184008,0.00015741,2]
[363422622,1748721032606,-2395.16987401,0.00015741,2]
[363422623,1748721032616,-2380.45724693,0.00016,2]
[363422624,1748721032626,-300.0,0.00016337,2]
[363422625,1748721032636,-379.95923806,0.00016338,2]
[363422626,1748721032646,-2056.29148394,0.00016338,2]
[363422627,1748721032655,-457.56256164,0.00016379,2]
[363422628,1748721032665,-565.0,0.00016427,2]
[363422629,1748721032675,-596.77,0.00016428,3]
[363422630,1748721032685,-298.39,0.00016428,3]
[363422631,1748721032694,-895.18,0.00016428,3]
[363422632,1748721032704,-358.92979051,0.00016437,2]
[363422633,1748721032714,-500.0,0.00016437,2]
[363422634,1748721032723,-500.0,0.00016437,2]
[363422636,1748721032734,-206.12092099,0.00016437,2]
[363422639,1748721032745,-500.0,0.00016437,2]
[363422641,1748721032758,-500.0,0.00016437,2]
[363422643,1748721032767,-500.0,0.00016437,2]
[363422645,1748721032777,-500.0,0.00016437,2]
[363422647,1748721032787,-420.81395968,0.00016437,2]
[363422649,1748721032797,-500.0,0.00016437,2]
[363422651,1748721032807,-500.0,0.00016437,2]
[363422653,1748721032817,-408.37337071,0.00016437,2]
[363422655,1748721032829,-500.0,0.00016437,2]
[363422657,1748721032839,-397.4912289,0.00016437,2]
[363422659,1748721032849,-500.0,0.00016437,2]
[363422661,1748721032859,-500.0,0.00016437,2]
[363422663,1748721032869,-500.0,0.00016437,2]
[363422665,1748721032879,-500.0,0.00016437,2]
[363422667,1748721032888,-500.0,0.00016437,2]
[363422669,1748721032898,-500.0,0.00016437,2]
[363422671,1748721032908,-450.0,0.00016437,2]
[363422672,1748721032918,-430.0,0.00016438,2]
[363422673,1748721032927,-430.0,0.00016438,2]
[363422674,1748721032937,-400.0,0.00016438,2]
[363422675,1748721032947,-430.0,0.00016438,2]
[363422676,1748721032957,-430.0,0.00016438,2]
[363422677,1748721032967,-430.0,0.00016438,2]
[363422678,1748721032977,-430.0,0.00016438,2]
[363422679,1748721032986,-430.0,0.00016438,2]
[363422680,1748721032996,-430.0,0.00016438,2]
[363422681,1748721033006,-208.2651586,0.00016438,2]
[363422682,1748721033016,-400.0,0.00016438,2]
[363422683,1748721033026,-430.0,0.00016438,2]
[363422684,1748721033036,-430.0,0.00016438,2]
[363422685,1748721033046,-430.0,0.00016438,2]
[363422686,1748721033056,-430.0,0.00016438,2]
[363422687,1748721033066,-430.71893555,0.00016438,2]
[363422688,1748721033076,-430.0,0.00016438,2]
[363422689,1748721033086,-430.0,0.00016438,2]
[363422690,1748721033096,-181.89869859,0.00016438,2]
[363422691,1748721033106,-430.0,0.00016438,2]
[363422692,1748721033115,-430.0,0.00016438,2]
[363422693,1748721033126,-430.0,0.00016438,2]
[363422694,1748721033136,-400.0,0.00016438,2]
[363422695,1748721033145,-450.93583068,0.00016438,2]
[363422696,1748721033155,-430.0,0.00016438,2]
[363422697,1748721033164,-430.0,0.00016438,2]
[363422698,1748721033174,-430.0,0.00016438,2]
[363422699,1748721033184,-430.0,0.00016438,2]
[363422700,1748721033193,-430.0,0.00016438,2]
[363422701,1748721033203,-430.0,0.00016438,2]
[363422702,1748721033213,-430.0,0.00016438,2]
[363422703,1748721033223,-450.0,0.00016438,2]
[363422704,1748721033234,-405.06904748,0.00016438,2]
[363422705,1748721033244,-300.0,0.00016438,2]
[363422706,1748721033254,-551.71191235,0.00016438,2]
[363422707,1748721033264,-202.51494458,0.00016438,2]
[363422708,1748721033274,-400.35283466,0.00016438,2]
[363422709,1748721033283,-430.0,0.00016438,2]
[363422710,1748721033293,-430.0,0.00016438,2]
[363422711,1748721033303,-400.0,0.00016438,2]
[363422712,1748721033313,-430.0,0.00016438,2]
[363422713,1748721033323,-430.0,0.00016438,2]
[363422714,1748721033334,-430.0,0.00016438,2]
[363422715,1748721033344,-430.0,0.00016438,2]
[363422716,1748721033354,-430.0,0.00016438,2]
[363422717,1748721033364,-430.0,0.00016438,2]
[363422718,1748721033374,-450.0,0.00016438,2]
[363422719,1748721033384,-400.0,0.00016438,2]
[363422720,1748721033395,-430.0,0.00016438,2]
[363422721,1748721033405,-430.0,0.00016438,2]
[363422722,1748721033415,-430.0,0.00016438,2]
[363422723,1748721033425,-430.0,0.00016438,2]
[363422724,1748721033435,-430.0,0.00016438,2]
[363422725,1748721033445,-430.0,0.00016438,2]
[363422726,1748721033455,-430.0,0.00016438,2]
[363422727,1748721033465,-400.0,0.00016438,2]
[363422728,1748721033474,-430.0,0.00016438,2]
[363422729,1748721033484,-430.0,0.00016438,2]
[363422730,1748721033494,-430.0,0.00016438,2]
[363422731,1748721033503,-430.0,0.00016438,2]
[363422732,1748721033513,-430.0,0.00016438,2]
[363422733,1748721033522,-430.0,0.00016438,2]
[363422734,1748721033532,-430.0,0.00016438,2]
[363422735,1748721033543,-451.16440759,0.00016438,2]
[363422736,1748721033553,-290.0,0.00016438,2]
[363422737,1748721033564,-301.74819044,0.00016438,2]
[363422738,1748721033574,-430.0,0.00016438,2]
[363422739,1748721033583,-430.0,0.00016438,2]
[363422740,1748721033593,-430.0,0.00016438,2]
[363422741,1748721033603,-452.15563039,0.00016438,2]
[363422742,1748721033612,-430.0,0.00016438,2]
[363422743,1748721033622,-450.33296573,0.00016438,2]
[363422744,1748721033632,-240.0,0.00016438,2]
[363422745,1748721033641,-430.0,0.00016438,2]
[363422746,1748721033651,-430.0,0.00016438,2]
[363422747,1748721033661,-450.0,0.00016438,2]
[363422748,1748721033671,-430.0,0.00016438,2]
[363422749,1748721033681,-176.25279022,0.00016438,2]
[363422750,1748721033692,-430.0,0.00016438,2]
[363422751,1748721033702,-430.0,0.00016438,2]
[363422752,1748721033712,-401.12668049,0.00016438,2]
[363422753,1748721033723,-430.0,0.00016438,2]
[363422754,1748721033733,-430.0,0.00016438,2]
[363422755,1748721033742,-430.0,0.00016438,2]
[363422756,1748721033755,-264.09338931,0.00016438,2]
[363422757,1748721033765,-430.0,0.00016438,2]
[363422758,1748721033775,-430.0,0.00016438,2]
[363422759,1748721033784,-430.0,0.00016438,2]
[363422760,1748721033795,-430.0,0.00016438,2]
[363422761,1748721033804,-430.0,0.00016438,2]
[363422762,1748721033815,-430.0,0.00016438,2]
[363422763,1748721033824,-430.0,0.00016438,2]
[363422764,1748721033834,-430.0,0.00016438,2]
[363422765,1748721033843,-430.0,0.00016438,2]
[363422766,1748721033854,-430.0,0.00016438,2]
[363422767,1748721033863,-430.0,0.00016438,2]
[363422768,1748721033872,-430.0,0.00016438,2]
[363422769,1748721033882,-430.0,0.00016438,2]
[363422770,1748721033892,-430.0,0.00016438,2]
[363422771,1748721033902,-501.07368235,0.00016438,2]
[363422772,1748721033911,-450.0,0.00016438,2]
[363422773,1748721033921,-430.0,0.00016438,2]
[363422774,1748721033930,-430.0,0.00016438,2]
[363422775,1748721033940,-430.0,0.00016438,2]
[363422776,1748721033950,-400.0,0.00016438,2]
[363422777,1748721033960,-430.0,0.00016438,2]
[363422778,1748721033970,-430.0,0.00016438,2]
[363422779,1748721033979,-451.0360057,0.00016438,2]
[363422780,1748721033989,-430.0,0.00016438,2]
[363422781,1748721033998,-430.0,0.00016438,2]
[363422782,1748721034008,-430.0,0.00016438,2]
[363422783,1748721034017,-450.0,0.00016438,2]
[363422784,1748721034027,-430.0,0.00016438,2]
[363422785,1748721034036,-570.0,0.00016438,2]
[363422786,1748721034046,-430.0,0.00016438,2]
[363422787,1748721034055,-570.0,0.00016438,2]
[363422788,1748721034066,-430.0,0.00016438,2]
[363422789,1748721034076,-430.0,0.00016438,2]
[363422790,1748721034087,-430.0,0.00016438,2]
[363422791,1748721034097,-157.34241287,0.00016438,2]
[363422792,1748721034107,-430.0,0.00016438,2]
[363422793,1748721034116,-430.0,0.00016438,2]
[363422794,1748721034126,-450.71705241,0.00016438,2]
[363422795,1748721034136,-567.81631446,0.00016438,2]
[363422796,1748721034146,-430.0,0.00016438,2]
[363422797,1748721034155,-430.0,0.00016438,2]
[363422798,1748721034165,-450.0,0.00016438,2]
[363422799,1748721034175,-430.0,0.00016438,2]
[363422800,1748721034184,-430.0,0.00016438,2]
[363422801,1748721034194,-452.91013274,0.00016438,2]
[363422802,1748721034204,-430.0,0.00016438,2]
[363422803,1748721034214,-430.0,0.00016438,2]
[363422804,1748721034223,-430.0,0.00016438,2]
[363422805,1748721034233,-430.0,0.00016438,2]
[363422806,1748721034243,-430.0,0.00016438,2]
[363422807,1748721034253,-430.0,0.00016438,2]
[363422808,1748721034263,-430.0,0.00016438,2]
[363422809,1748721034272,-407.76320901,0.00016438,2]
[363422810,1748721034282,-430.0,0.00016438,2]
[363422811,1748721034292,-430.0,0.00016438,2]
[363422812,1748721034302,-430.0,0.00016438,2]
[363422813,1748721034312,-453.01389835,0.00016438,2]
[363422814,1748721034322,-403.77683967,0.00016438,2]
[363422815,1748721034332,-430.0,0.00016438,2]
[363422816,1748721034342,-430.0,0.00016438,2]
[363422817,1748721034353,-430.0,0.00016438,2]
[363422818,1748721034363,-430.0,0.00016438,2]
[363422819,1748721034373,-430.0,0.00016438,2]
[363422820,1748721034383,-430.0,0.00016438,2]
[363422821,1748721034392,-430.0,0.00016438,2]
[363422822,1748721034402,-430.0,0.00016438,2]
[363422823,1748721034412,-453.67607203,0.00016438,2]
[363422824,1748721034422,-430.0,0.00016438,2]
[363422825,1748721034432,-350.0,0.00016438,2]
[363422826,1748721034442,-430.0,0.00016438,2]
[363422827,1748721034451,-430.0,0.00016438,2]
[363422828,1748721034461,-430.0,0.00016438,2]
[363422829,1748721034471,-300.0,0.00016438,2]
[363422830,1748721034480,-430.0,0.00016438,2]
[363422831,1748721034490,-430.0,0.00016438,2]
[363422832,1748721034500,-430.0,0.00016438,2]
[363422833,1748721034509,-430.0,0.00016438,2]
[363422834,1748721034519,-420.0,0.00016438,2]
[363422835,1748721034529,-430.0,0.00016438,2]
[363422836,1748721034539,-430.0,0.00016438,2]
[363422837,1748721034548,-430.0,0.00016438,2]
[363422838,1748721034558,-430.0,0.00016438,2]
[363422839,1748721034567,-430.0,0.00016438,2]
[363422840,1748721034577,-500.0,0.00016438,2]
[363422841,1748721034587,-500.0,0.00016438,2]
[363422842,1748721034597,-500.0,0.00016438,2]
[363422843,1748721034608,-500.0,0.00016438,2]
[363422844,1748721034617,-500.0,0.00016438,2]
[363422845,1748721034627,-500.0,0.00016438,2]
[363422846,1748721034636,-500.0,0.00016438,2]
[363422847,1748721034646,-495.38,0.00016438,2]
[363422848,1748721034655,-430.0,0.00016438,2]
[363422849,1748721034664,-430.0,0.00016438,2]
[363422850,1748721034673,-451.47711959,0.00016438,2]
[363422851,1748721034682,-430.0,0.00016438,2]
[363422852,1748721034691,-430.0,0.00016438,2]
[363422853,1748721034699,-430.0,0.00016438,2]
[363422854,1748721034710,-430.0,0.00016438,2]
[363422855,1748721034720,-430.0,0.00016438,2]
[363422856,1748721034730,-430.0,0.00016438,2]
[363422857,1748721034741,-430.0,0.00016438,2]
[363422858,1748721034755,-430.0,0.00016438,2]
[363422859,1748721034764,-430.0,0.00016438,2]
[363422860,1748721034774,-430.0,0.00016438,2]
[363422861,1748721034784,-430.0,0.00016438,2]
[363422862,1748721034795,-430.0,0.00016438,2]
[363422863,1748721034805,-430.0,0.00016438,2]
[363422864,1748721034815,-430.0,0.00016438,2]
[363422865,1748721034824,-430.0,0.00016438,2]
[363422866,1748721034834,-430.0,0.00016438,2]
[363422867,1748721034845,-430.0,0.00016438,2]
[363422868,1748721034855,-430.0,0.00016438,2]
[363422869,1748721034865,-430.0,0.00016438,2]
[363422870,1748721034875,-430.0,0.00016438,2]
[363422871,1748721034887,-430.0,0.00016438,2]
[363422872,1748721034897,-430.0,0.00016438,2]
[363422873,1748721034908,-430.0,0.00016438,2]
[363422874,1748721034918,-430.0,0.00016438,2]
[363422875,1748721034928,-430.0,0.00016438,2]
[363422876,1748721034939,-293.60200797,0.00016438,2]
[363422877,1748721034949,-430.0,0.00016438,2]
[363422878,1748721034959,-430.0,0.00016438,2]
[363422879,1748721034971,-430.0,0.00016438,2]
[363422880,1748721034982,-430.0,0.00016438,2]
[363422881,1748721034992,-430.0,0.00016438,2]
[363422882,1748721035004,-430.0,0.00016438,2]
[363422883,1748721035015,-430.0,0.00016438,2]
[363422884,1748721035025,-430.0,0.00016438,2]
[363422885,1748721035039,-347.02631203,0.00016438,2]
[363422886,1748721035052,-430.0,0.00016438,2]
[363422887,1748721035063,-450.0,0.00016438,2]
[363422888,1748721035073,-430.0,0.00016438,2]
[363422889,1748721035082,-450.0,0.00016438,2]
[363422890,1748721035091,-430.0,0.00016438,2]
[363422891,1748721035101,-430.0,0.00016438,2]
[363422892,1748721035110,-430.0,0.00016438,2]
[363422893,1748721035120,-430.0,0.00016438,2]
[363422894,1748721035130,-450.0,0.00016438,2]
[363422895,1748721035140,-430.0,0.00016438,2]
[363422896,1748721035150,-430.0,0.00016438,2]
[363422897,1748721035163,-430.0,0.00016438,2]
[363422898,1748721035173,-430.0,0.00016438,2]
[363422899,1748721035183,-450.0,0.00016438,2]
[363422900,1748721035194,-430.0,0.00016438,2]
[363422901,1748721035203,-430.0,0.00016438,2]
[363422902,1748721035213,-430.0,0.00016438,2]
[363422903,1748721035222,-400.0,0.00016438,2]
[363422904,1748721035231,-430.0,0.00016438,2]
[363422905,1748721035352,-430.0,0.00016438,2]
[363422906,1748721035362,-430.0,0.00016438,2]
[363422907,1748721035372,-430.0,0.00016438,2]
[363422908,1748721035382,-430.0,0.00016438,2]
[363422909,1748721035392,-430.0,0.00016438,2]
[363422910,1748721035402,-430.0,0.00016438,2]
[363422911,1748721035412,-470.0,0.00016438,2]
[363422912,1748721035422,-430.0,0.00016438,2]
[363422913,1748721035432,-430.0,0.00016438,2]
[363422914,1748721035442,-430.0,0.00016438,2]
[363422915,1748721035452,-430.0,0.00016438,2]
[363422916,1748721035463,-421.72059834,0.00016438,2]
[363422917,1748721035472,-151.02360114,0.00016438,2]
[363422918,1748721035482,-430.0,0.00016438,2]
[363422919,1748721035493,-454.64700913,0.00016438,2]
[363422920,1748721035503,-1012.03950601,0.00016438,2]
[363422921,1748721035512,-453.59156751,0.00016438,2]
[363422922,1748721035523,-430.0,0.00016438,2]
[363422923,1748721035533,-430.0,0.00016438,2]
[363422924,1748721035542,-451.60956641,0.00016438,2]
[363422925,1748721035552,-430.0,0.00016438,2]
[363422926,1748721035561,-430.0,0.00016438,2]
[363422927,1748721035571,-213.97223498,0.00016438,2]
[363422928,1748721035581,-470.0,0.00016438,2]
[363422929,1748721035590,-551.56568046,0.00016438,2]
[363422930,1748721035599,-430.0,0.00016438,2]
[363422931,1748721035609,-430.0,0.00016438,2]
[363422932,1748721035618,-430.0,0.00016438,2]
[363422933,1748721035627,-454.16718036,0.00016438,2]
[363422934,1748721035637,-430.0,0.00016438,2]
[363422935,1748721035647,-430.0,0.00016438,2]
[363422936,1748721035656,-450.0,0.00016438,2]
[363422937,1748721035666,-430.0,0.00016438,2]
[363422938,1748721035675,-456.74614325,0.00016438,2]
[363422939,1748721035684,-430.0,0.00016438,2]
[363422940,1748721035693,-453.53202309,0.00016438,2]
[363422941,1748721035703,-430.0,0.00016438,2]
[363422942,1748721035713,-430.0,0.00016438,2]
[363422943,1748721035722,-430.0,0.00016438,2]
[363422944,1748721035731,-430.0,0.00016438,2]
[363422945,1748721035741,-866.48,0.00016438,2]
[363422946,1748721035751,-453.74075566,0.00016438,2]
[363422947,1748721035761,-455.1735352,0.00016438,2]
[363422948,1748721035770,-451.13242223,0.00016438,2]
[363422949,1748721035779,-500.0,0.00016438,2]